fUSD/lending_fUSD_20250514
["ID","MTS","AMOUNT","RATE_DAILY","PERIOD"]
[361056189,1747222239872,-400.0,0.00010987,2]
[361056190,1747222239881,-400.0,0.00010987,2]
[361056192,1747222239891,-165.92539485,0.00010987,2]
[361056194,1747222239900,-400.0,0.00010987,2]
[361056195,1747222239909,-151.19089491,0.00010987,2]
[361056197,1747222239917,-259.56319034,0.00010987,2]
[361056198,1747222239925,-404.99107627,0.00010987,2]
[361056199,1747222239933,-391.94827582,0.00010987,2]
[361056201,1747222239942,-448.90257041,0.00010987,2]
[361056202,1747222239952,-400.0,0.00010987,2]
[361056203,1747222239962,-401.04533332,0.00010987,2]
[361056204,1747222239972,-400.0,0.00010987,2]
[361056205,1747222239982,-400.0,0.00010987,2]
[361056206,1747222239992,-511.85883171,0.00010987,2]
[361056207,1747222240002,-400.0,0.00010987,2]
[361056208,1747222240012,-400.0,0.00010987,2]
[361056209,1747222240022,-400.0,0.00010987,2]
[361056210,1747222240032,-400.0,0.00010987,2]
[361056211,1747222240042,-651.67,0.00010987,2]
[361056212,1747222240052,-400.0,0.00010987,2]
[361056213,1747222240061,-400.0,0.00010987,2]
[361056214,1747222240071,-400.0,0.00010987,2]
[361056215,1747222240082,-400.0,0.00010987,2]
[361056216,1747222240092,-501.55736406,0.00010987,2]
[361056217,1747222240102,-400.0,0.00010987,2]
[361056218,1747222240112,-369.92378984,0.00010987,2]
[361056219,1747222240121,-400.0,0.00010987,2]
[361056220,1747222240131,-402.002299,0.00010987,2]
[361056221,1747222240141,-400.0,0.00010987,2]
[361056222,1747222240151,-400.0,0.00010987,2]
[361056223,1747222240161,-400.0,0.00010987,2]
[361056224,1747222240171,-400.0,0.00010987,2]
[361056225,1747222240181,-617.43,0.00010987,2]
[361056226,1747222240189,-400.0,0.00010987,2]
[361056227,1747222240197,-400.0,0.00010987,2]
[361056228,1747222240207,-400.0,0.00010987,2]
[361056229,1747222240216,-400.0,0.00010987,2]
[361056230,1747222240226,-505.03,0.00010987,2]
[361056231,1747222240236,-400.0,0.00010987,2]
[361056232,1747222240246,-400.0,0.00010987,2]
[361056233,1747222240255,-400.0,0.00010987,2]
[361056234,1747222240264,-400.0,0.00010987,2]
[361056235,1747222240273,-270.55027296,0.00010987,2]
[361056236,1747222240283,-418.77,0.00010987,2]
[361056237,1747222240292,-505.25424379,0.00010987,2]
[361056238,1747222240301,-443.42,0.00010987,2]
[361056239,1747222240310,-504.36103769,0.00010987,2]
[361056240,1747222240319,-400.0,0.00010987,2]
[361056241,1747222240328,-400.0,0.00010987,2]
[361056242,1747222240337,-511.64860947,0.00010987,2]
[361056243,1747222240346,-400.0,0.00010987,2]
[361056244,1747222240355,-400.0,0.00010987,2]
[361056245,1747222240364,-400.0,0.00010987,2]
[361056246,1747222240373,-400.0,0.00010987,2]
[361056247,1747222240382,-400.0,0.00010987,2]
[361056248,1747222240391,-400.0,0.00010987,2]
[361056249,1747222240400,-307.49886802,0.00010987,2]
[361056250,1747222240409,-400.0,0.00010987,2]
[361056251,1747222240418,-306.46,0.00010987,2]
[361056252,1747222240427,-447.29,0.00010987,2]
[361056253,1747222240436,-196.31174196,0.00010987,2]
[361056254,1747222240445,-345.06608791,0.00010987,2]
[361056255,1747222240453,-400.0,0.00010987,2]
[361056256,1747222240462,-400.0,0.00010987,2]
[361056257,1747222240472,-230.09633251,0.00010987,2]
[361056258,1747222240482,-449.14,0.00010987,2]
[361056259,1747222240490,-400.0,0.00010987,2]
[361056260,1747222240500,-181.42672985,0.00010987,2]
[361056261,1747222240509,-450.0,0.00010987,2]
[361056262,1747222240522,-400.0,0.00010987,2]
[361056263,1747222240531,-400.0,0.00010987,2]
[361056264,1747222240540,-400.0,0.00010987,2]
[361056265,1747222240549,-159.30037565,0.00010987,2]
[361056266,1747222240559,-400.0,0.00010987,2]
[361056267,1747222240567,-400.0,0.00010987,2]
[361056268,1747222240576,-400.0,0.00010987,2]
[361056269,1747222240586,-400.0,0.00010987,2]
[361056271,1747222240596,-400.0,0.00010987,2]
[361056272,1747222240606,-400.0,0.00010987,2]
[361056273,1747222240615,-301.01925369,0.00010987,2]
[361056274,1747222240623,-402.12906984,0.00010987,2]
[361056275,1747222240632,-400.0,0.00010987,2]
[361056276,1747222240641,-400.0,0.00010987,2]
[361056277,1747222240650,-403.88580754,0.00010987,2]
[361056278,1747222240659,-307.20343804,0.00010987,2]
[361056279,1747222240668,-400.0,0.00010987,2]
[361056280,1747222240677,-405.69546812,0.00010987,2]
[361056281,1747222240686,-400.0,0.00010987,2]
[361056282,1747222240695,-403.60134401,0.00010987,2]
[361056283,1747222240705,-417.93034343,0.00010987,2]
[361056284,1747222240714,-404.58472128,0.00010987,2]
[361056285,1747222240723,-400.0,0.00010987,2]
[361056286,1747222240733,-400.0,0.00010987,2]
[361056287,1747222240744,-400.0,0.00010987,2]
[361056288,1747222240753,-401.61347642,0.00010987,2]
[361056289,1747222240763,-158.36004447,0.00010987,2]
[361056290,1747222240772,-400.0,0.00010987,2]
[361056292,1747222240781,-400.0,0.00010987,2]
[361056293,1747222240790,-400.0,0.00010987,2]
[361056294,1747222240799,-474.13368327,0.00010987,2]
[361056296,1747222240809,-400.0,0.00010987,2]
[361056298,1747222240818,-400.0,0.00010987,2]
[361056299,1747222240827,-400.0,0.00010987,2]
[361056300,1747222240837,-412.14761943,0.00010987,2]
[361056301,1747222240846,-406.35957689,0.00010987,2]
[361056302,1747222240855,-420.62158628,0.00010987,2]
[361056303,1747222240863,-400.0,0.00010987,2]
[361056304,1747222240872,-508.18,0.00010987,2]
[361056305,1747222240882,-400.0,0.00010987,2]
[361056306,1747222240891,-400.0,0.00010987,2]
[361056307,1747222240901,-400.0,0.00010987,2]
[361056308,1747222240911,-400.0,0.00010987,2]
[361056309,1747222240921,-400.0,0.00010987,2]
[361056310,1747222240931,-500.0,0.00010987,2]
[361056311,1747222240943,-400.0,0.00010987,2]
[361056312,1747222240952,-160.34145171,0.00010987,2]
[361056313,1747222240962,-856.93,0.00010987,2]
[361056314,1747222240973,-400.0,0.00010987,2]
[361056315,1747222240983,-496.08272906,0.00010987,2]
[361056316,1747222240992,-400.0,0.00010987,2]
[361056317,1747222241003,-324.62627174,0.00010987,2]
[361056318,1747222241012,-400.0,0.00010987,2]
[361056319,1747222241021,-400.0,0.00010987,2]
[361056320,1747222241031,-400.0,0.00010987,2]
[361056321,1747222241040,-400.0,0.00010987,2]
[361056322,1747222241049,-400.0,0.00010987,2]
[361056323,1747222241059,-404.56077067,0.00010987,2]
[361056324,1747222241068,-400.0,0.00010987,2]
[361056325,1747222241078,-400.0,0.00010987,2]
[361056326,1747222241087,-400.0,0.00010987,2]
[361056327,1747222241096,-400.0,0.00010987,2]
[361056328,1747222241105,-401.17973101,0.00010987,2]
[361056329,1747222241113,-500.0,0.00010987,2]
[361056330,1747222241121,-400.0,0.00010987,2]
[361056331,1747222241130,-400.0,0.00010987,2]
[361056332,1747222241139,-400.0,0.00010987,2]
[361056333,1747222241147,-400.0,0.00010987,2]
[361056334,1747222241156,-400.0,0.00010987,2]
[361056335,1747222241164,-400.0,0.00010987,2]
[361056336,1747222241173,-400.0,0.00010987,2]
[361056337,1747222241181,-400.0,0.00010987,2]
[361056338,1747222241189,-526.59353136,0.00010987,2]
[361056339,1747222241198,-476.14008986,0.00010987,2]
[361056340,1747222241206,-400.0,0.00010987,2]
[361056341,1747222241215,-400.0,0.00010987,2]
[361056342,1747222241224,-292.83182273,0.00010987,2]
[361056343,1747222241234,-400.0,0.00010987,2]
[361056344,1747222241244,-400.0,0.00010987,2]
[361056345,1747222241253,-400.0,0.00010987,2]
[361056346,1747222241262,-400.0,0.00010987,2]
[361056347,1747222241272,-400.0,0.00010987,2]
[361056348,1747222241280,-158.34350622,0.00010987,2]
[361056349,1747222241290,-428.53630199,0.00010987,2]
[361056350,1747222241299,-400.0,0.00010987,2]
[361056351,1747222241308,-400.0,0.00010987,2]
[361056352,1747222241318,-400.0,0.00010987,2]
[361056353,1747222241327,-478.08,0.00010987,2]
[361056354,1747222241336,-806.87,0.00010987,2]
[361056355,1747222241347,-400.0,0.00010987,2]
[361056356,1747222241357,-400.0,0.00010987,2]
[361056357,1747222241367,-400.0,0.00010987,2]
[361056358,1747222241377,-400.0,0.00010987,2]
[361056359,1747222241386,-400.0,0.00010987,2]
[361056360,1747222241396,-1000.0,0.00010987,2]
[361056361,1747222241405,-734.29,0.00010987,2]
[361056362,1747222241415,-400.0,0.00010987,2]
[361056363,1747222241424,-400.0,0.00010987,2]
[361056364,1747222241434,-400.0,0.00010987,2]
[361056365,1747222241443,-400.0,0.00010987,2]
[361056366,1747222241452,-400.0,0.00010987,2]
[361056367,1747222241462,-400.0,0.00010987,2]
[361056368,1747222241472,-400.0,0.00010987,2]
[361056369,1747222241482,-400.0,0.00010987,2]
[361056370,1747222241491,-551.5,0.00010987,2]
[361056371,1747222241501,-720.84,0.00010987,2]
[361056372,1747222241510,-597.81,0.00010987,2]
[361056373,1747222241524,-400.0,0.00010987,2]
[361056374,1747222241533,-505.27,0.00010987,2]
[361056375,1747222241543,-1304.53335217,0.00010987,3]
[361056376,1747222241552,-1120.25,0.00010987,2]
[361056377,1747222241563,-560.12,0.00010987,2]
[361056378,1747222241572,-400.0,0.00010987,2]
[361056379,1747222241582,-400.0,0.00010987,2]
[361056380,1747222241592,-431.22,0.00010987,2]
[361056381,1747222241602,-400.0,0.00010987,2]
[361056382,1747222241611,-167.865002,0.00010987,2]
[361056383,1747222241620,-943.31,0.00010987,2]
[361056384,1747222241630,-465.02,0.00010987,2]
[361056385,1747222241639,-412.85,0.00010987,2]
[361056386,1747222241649,-400.0,0.00010987,2]
[361056387,1747222241658,-400.0,0.00010987,2]
[361056388,1747222241667,-1734.98,0.00010987,2]
[361056389,1747222241676,-400.0,0.00010987,2]
[361056390,1747222241686,-400.0,0.00010987,2]
[361056391,1747222241695,-400.0,0.00010987,2]
[361056392,1747222241705,-400.0,0.00010987,2]
[361056393,1747222241714,-708.55,0.00010987,2]
[361056394,1747222241725,-735.05,0.00010987,2]
[361056395,1747222241735,-883.5,0.00010987,2]
[361056396,1747222241743,-400.0,0.00010987,2]
[361056397,1747222241751,-400.0,0.00010987,2]
[361056398,1747222241759,-813.3,0.00010987,2]
[361056399,1747222241767,-400.0,0.00010987,2]
[361056400,1747222241776,-400.0,0.00010987,2]
[361056401,1747222241785,-1010.7,0.00010987,2]
[361056402,1747222241794,-400.0,0.00010987,2]
[361056403,1747222241803,-515.22,0.00010987,2]
[361056404,1747222241811,-792.61,0.00010987,2]
[361056405,1747222241819,-400.0,0.00010987,2]
[361056406,1747222241827,-400.0,0.00010987,2]
[361056407,1747222241836,-433.97,0.00010987,2]
[361056408,1747222241846,-400.0,0.00010987,2]
[361056409,1747222241854,-400.0,0.00010987,2]
[361056410,1747222241863,-400.0,0.00010987,2]
[361056411,1747222241872,-543.14,0.00010987,2]
[361056412,1747222241882,-400.0,0.00010987,2]
[361056413,1747222241893,-400.0,0.00010987,2]
[361056414,1747222241904,-895.75,0.00010987,2]
[361056415,1747222241914,-400.0,0.00010987,2]
[361056416,1747222241923,-400.0,0.00010987,2]
[361056417,1747222241933,-400.0,0.00010987,2]
[361056418,1747222241943,-400.0,0.00010987,2]
[361056419,1747222241952,-400.0,0.00010987,2]
[361056420,1747222241961,-400.0,0.00010987,2]
[361056421,1747222241971,-400.0,0.00010987,2]
[361056422,1747222241980,-400.0,0.00010987,2]
[361056423,1747222241990,-400.0,0.00010987,2]
[361056424,1747222241999,-400.0,0.00010987,2]
[361056425,1747222242009,-400.0,0.00010987,2]
[361056426,1747222242019,-508.33,0.00010987,2]
[361056427,1747222242027,-400.0,0.00010987,2]
[361056428,1747222242037,-400.0,0.00010987,2]
[361056429,1747222242046,-400.0,0.00010987,2]
[361056430,1747222242055,-415.53350762,0.00010987,2]
[361056431,1747222242065,-400.0,0.00010987,2]
[361056432,1747222242075,-1878.51,0.00010987,2]
[361056433,1747222242086,-400.0,0.00010987,2]
[361056434,1747222242096,-507.04,0.00010987,2]
[361056435,1747222242107,-400.0,0.00010987,2]
[361056436,1747222242116,-400.0,0.00010987,2]
[361056437,1747222242126,-400.0,0.00010987,2]
[361056438,1747222242135,-400.0,0.00010987,2]
[361056439,1747222242145,-400.0,0.00010987,2]
[361056440,1747222242154,-400.0,0.00010987,2]
[361056441,1747222242164,-400.0,0.00010987,2]
[361056442,1747222242173,-418.02,0.00010987,2]
[361056443,1747222242183,-400.0,0.00010987,2]
[361056444,1747222242192,-400.0,0.00010987,2]
[361056445,1747222242202,-497.66,0.00010987,2]
[361056446,1747222242212,-400.0,0.00010987,2]
[361056447,1747222242222,-1012.04,0.00010987,2]
[361056448,1747222242232,-400.0,0.00010987,2]
[361056449,1747222242241,-410.2,0.00010987,2]
[361056450,1747222242250,-400.0,0.00010987,2]
[361056451,1747222242260,-550.8,0.00010987,2]
[361056452,1747222242269,-289.95600208,0.00010987,2]
[361056453,1747222242279,-400.0,0.00010987,2]
[361056454,1747222242288,-400.0,0.00010987,2]
[361056455,1747222242298,-400.0,0.00010987,2]
[361056456,1747222242308,-400.0,0.00010987,2]
[361056457,1747222242318,-400.0,0.00010987,2]
[361056458,1747222242327,-506.18,0.00010987,2]
[361056459,1747222242336,-561.12,0.00010987,2]
[361056460,1747222242346,-400.0,0.00010987,2]
[361056461,1747222242356,-400.0,0.00010987,2]
[361056462,1747222242368,-644.04,0.00010987,2]
[361056463,1747222242378,-400.0,0.00010987,2]
[361056464,1747222242390,-400.0,0.00010987,2]
[361056465,1747222242400,-400.0,0.00010987,2]
[361056466,1747222242409,-602.84,0.00010987,2]
[361056467,1747222242419,-866.82,0.00010987,2]
[361056468,1747222242428,-402.53,0.00010987,2]
[361056469,1747222242437,-400.0,0.00010987,2]
[361056470,1747222242447,-400.0,0.00010987,2]
[361056471,1747222242455,-490.68,0.00010987,2]
[361056472,1747222242464,-400.0,0.00010987,2]
[361056473,1747222242475,-400.0,0.00010987,2]
[361056474,1747222242485,-400.0,0.00010987,2]
[361056475,1747222242494,-400.0,0.00010987,2]
[361056476,1747222242504,-400.0,0.00010987,2]
[361056477,1747222242516,-416.43,0.00010987,2]
[361056478,1747222242528,-400.0,0.00010987,2]
[361056479,1747222242538,-642.27,0.00010987,2]
[361056480,1747222242548,-400.0,0.00010987,2]
[361056481,1747222242559,-400.0,0.00010987,2]
[361056482,1747222242568,-400.0,0.00010987,2]
[361056483,1747222242578,-400.0,0.00010987,2]
[361056484,1747222242587,-1220.35,0.00010987,2]
[361056485,1747222242598,-400.0,0.00010987,2]
[361056486,1747222242608,-527.91,0.00010987,2]
[361056487,1747222242617,-534.07,0.00010987,2]
[361056488,1747222242627,-400.0,0.00010987,2]
[361056489,1747222242636,-400.0,0.00010987,2]
[361056490,1747222242646,-400.0,0.00010987,2]
[361056491,1747222242655,-400.0,0.00010987,2]
[361056492,1747222242664,-400.0,0.00010987,2]
[361056493,1747222242674,-400.0,0.00010987,2]
[361056494,1747222242685,-440.12,0.00010987,2]
[361056495,1747222242694,-400.0,0.00010987,2]
[361056496,1747222242703,-400.0,0.00010987,2]
[361056497,1747222242713,-400.0,0.00010987,2]
[361056498,1747222242723,-400.0,0.00010987,2]
[361056499,1747222242732,-672.13,0.00010987,2]
[361056500,1747222242741,-400.0,0.00010987,2]
[361056501,1747222242750,-400.0,0.00010987,2]
[361056502,1747222242760,-1143.1,0.00010987,2]
[361056503,1747222242769,-400.0,0.00010987,2]
[361056504,1747222242779,-580.21,0.00010987,2]
[361056505,1747222242788,-678.82,0.00010987,2]
[361056506,1747222242797,-400.0,0.00010987,2]
[361056507,1747222242807,-966.55,0.00010987,2]
[361056508,1747222242816,-400.0,0.00010987,2]
[361056509,1747222242826,-400.0,0.00010987,2]
[361056510,1747222242835,-400.0,0.00010987,2]
[361056511,1747222242845,-400.0,0.00010987,2]
[361056512,1747222242854,-826.91,0.00010987,2]
[361056513,1747222242864,-400.0,0.00010987,2]
[361056515,1747222242873,-437.57,0.00010987,2]
[361056517,1747222242883,-400.0,0.00010987,2]
[361056519,1747222242892,-400.0,0.00010987,2]
[361056520,1747222242902,-400.0,0.00010987,2]
[361056521,1747222242911,-668.19,0.00010987,2]
[361056522,1747222242921,-457.14,0.00010987,2]
[361056523,1747222242931,-400.0,0.00010987,2]
[361056524,1747222242941,-400.0,0.00010987,2]
[361056525,1747222242951,-765.37,0.00010987,2]
[361056526,1747222242962,-400.0,0.00010987,2]
[361056527,1747222242972,-400.0,0.00010987,2]
[361056528,1747222242981,-400.0,0.00010987,2]
[361056529,1747222242991,-1154.41,0.00010987,2]
[361056530,1747222243000,-400.0,0.00010987,2]
[361056531,1747222243012,-400.0,0.00010987,2]
[361056532,1747222243021,-400.0,0.00010987,2]
[361056533,1747222243031,-400.0,0.00010987,2]
[361056534,1747222243040,-729.42,0.00010987,2]
[361056535,1747222243050,-1059.71,0.00010987,2]
[361056537,1747222243059,-400.0,0.00010987,2]
[361056539,1747222243069,-400.0,0.00010987,2]
[361056541,1747222243078,-400.0,0.00010987,2]
[361056542,1747222243088,-671.84,0.00010987,2]
[361056543,1747222243098,-400.0,0.00010987,2]
[361056544,1747222243107,-400.0,0.00010987,2]
[361056545,1747222243117,-2153.64,0.00010987,2]
[361056546,1747222243128,-916.39,0.00010987,2]
[361056547,1747222243137,-497.91,0.00010987,2]
[361056548,1747222243147,-722.74,0.00010987,2]
[361056549,1747222243156,-400.0,0.00010987,2]
[361056550,1747222243166,-517.03,0.00010987,2]
[361056551,1747222243175,-449.87,0.00010987,2]
[361056552,1747222243184,-3426.58,0.00010987,2]
[361056553,1747222243193,-400.0,0.00010987,2]
[361056554,1747222243203,-536.04135594,0.00010987,2]
[361056555,1747222243212,-400.0,0.00010987,2]
[361056556,1747222243221,-400.0,0.00010987,2]
[361056557,1747222243231,-400.0,0.00010987,2]
[361056558,1747222243240,-400.0,0.00010987,2]
[361056559,1747222243250,-7687.15,0.00010987,2]
[361056560,1747222243259,-400.0,0.00010987,2]
[361056561,1747222243268,-1209.88,0.00010987,2]
[361056562,1747222243277,-2467.66,0.00010987,2]
[361056563,1747222243287,-400.0,0.00010987,2]
[361056564,1747222243296,-409.16,0.00010987,2]
[361056565,1747222243306,-400.0,0.00010987,2]
[361056566,1747222243315,-649.82512684,0.00010987,2]
[361056567,1747222243362,-435.68171213,0.00010987,2]
[361056568,1747222243374,-808.33316103,0.00010987,2]
[361056569,1747222243383,-1069.82,0.00010987,2]
[361056570,1747222243392,-400.0,0.00010987,2]
[361056571,1747222243402,-358.0,0.00010987,2]
[361056572,1747222243412,-400.0,0.00010987,2]
[361056573,1747222243421,-1694.85,0.00010987,2]
[361056574,1747222243430,-400.0,0.00010987,2]
[361056575,1747222243440,-400.0,0.00010987,2]
[361056576,1747222243449,-1322.88,0.00010987,2]
[361056577,1747222243458,-1396.03,0.00010987,2]
[361056578,1747222243468,-1024.72,0.00010987,2]
[361056579,1747222243478,-400.0,0.00010987,2]
[361056580,1747222243487,-411.99,0.00010987,2]
[361056581,1747222243497,-475.9,0.00010987,2]
[361056582,1747222243507,-892.67,0.00010987,2]
[361056583,1747222243521,-2433.88,0.00010987,2]
[361056584,1747222243530,-3753.46,0.00010987,2]
[361056585,1747222243539,-400.0,0.00010987,2]
[361056586,1747222243549,-400.0,0.00010987,2]
[361056587,1747222243559,-400.0,0.00010987,2]
[361056588,1747222243568,-400.0,0.00010987,2]
[361056589,1747222243578,-3166.73,0.00010987,2]
[361056590,1747222243587,-400.0,0.00010987,2]
[361056591,1747222243598,-495.47,0.00010987,2]
[361056592,1747222243608,-400.0,0.00010987,2]
[361056593,1747222243618,-400.0,0.00010987,2]
[361056594,1747222243628,-13714.46,0.00010987,2]
[361056595,1747222243637,-400.0,0.00010987,2]
[361056596,1747222243646,-400.0,0.00010987,2]
[361056597,1747222243656,-400.78460587,0.00010987,2]
[361056598,1747222243665,-2499.71591789,0.00010987,2]
[361056602,1747222244240,-400.0,0.00010986,2]
[361056603,1747222244250,-400.0,0.00010986,2]
[361056604,1747222244260,-7182.48408211,0.00010987,2]
[361056605,1747222244271,-447.17,0.00010987,2]
[361056606,1747222244282,-400.0,0.00010987,2]
[361056607,1747222244291,-400.0,0.00010987,2]
[361056608,1747222244301,-1594.08,0.00010987,2]
[361056609,1747222244310,-400.0,0.00010987,2]
[361056610,1747222244320,-1089.75,0.00010987,2]
[361056611,1747222244329,-400.0,0.00010987,2]
[361056612,1747222244339,-1497.18,0.00010987,2]
[361056613,1747222244348,-400.0,0.00010987,2]
[361056614,1747222244358,-2800.81,0.00010987,2]
[361056615,1747222244367,-4430.76,0.00010987,2]
[361056616,1747222244377,-356.2288968,0.00010987,2]
[361056617,1747222244386,-400.0,0.00010987,2]
[361056618,1747222244396,-400.0,0.00010987,2]
[361056619,1747222244406,-1607.11,0.00010987,2]
[361056620,1747222244416,-980.21,0.00010987,2]
[361056621,1747222244426,-400.0,0.00010987,2]
[361056622,1747222244435,-400.0,0.00010987,2]
[361056623,1747222244445,-400.0,0.00010987,2]
[361056624,1747222244454,-400.0,0.00010987,2]
[361056625,1747222244464,-836.94,0.00010987,2]
[361056626,1747222244475,-400.0,0.00010987,2]
[361056627,1747222244485,-400.0,0.00010987,2]
[361056628,1747222244495,-15369.61,0.00010987,2]
[361056629,1747222244505,-400.0,0.00010987,2]
[361056630,1747222244515,-400.0,0.00010987,2]
[361056631,1747222244528,-400.0,0.00010987,2]
[361056632,1747222244537,-1735.46,0.00010987,2]
[361056633,1747222244547,-400.0,0.00010987,2]
[361056634,1747222244556,-400.0,0.00010987,2]
[361056635,1747222244566,-400.0,0.00010987,2]
[361056636,1747222244575,-2217.93,0.00010987,2]
[361056637,1747222244585,-4949.31,0.00010987,2]
[361056638,1747222244595,-470.96,0.00010987,2]
[361056639,1747222244605,-2303.78,0.00010987,2]
[361056640,1747222244614,-400.0,0.00010987,2]
[361056641,1747222244625,-771.17,0.00010987,2]
[361056642,1747222244634,-7774.96,0.00010987,2]
[361056643,1747222244644,-400.0,0.00010987,2]
[361056644,1747222244653,-474.37,0.00010987,2]
[361056645,1747222244663,-400.0,0.00010987,2]
[361056646,1747222244672,-942.68,0.00010987,2]
[361056647,1747222244681,-400.0,0.00010987,2]
[361056648,1747222244691,-493.96,0.00010987,2]
[361056649,1747222244700,-1745.58,0.00010987,2]
[361056650,1747222244710,-606.61,0.00010987,2]
[361056651,1747222244719,-8128.07,0.00010987,2]
[361056652,1747222244729,-400.0,0.00010987,2]
[361056653,1747222244739,-400.0,0.00010987,2]
[361056654,1747222244748,-459.39,0.00010987,2]
[361056655,1747222244757,-400.0,0.00010987,2]
[361056656,1747222244767,-1071.58,0.00010987,2]
[361056657,1747222244776,-400.0,0.00010987,2]
[361056658,1747222244787,-890.5,0.00010987,2]
[361056659,1747222244796,-400.0,0.00010987,2]
[361056660,1747222244805,-2533.88,0.00010987,2]
[361056661,1747222244815,-1288.11,0.00010987,2]
[361056662,1747222244824,-1866.29,0.00010987,2]
[361056663,1747222244833,-400.0,0.00010987,2]
[361056664,1747222244843,-400.0,0.00010987,2]
[361056665,1747222244853,-400.0,0.00010987,2]
[361056666,1747222244862,-400.0,0.00010987,2]
[361056667,1747222244872,-400.0,0.00010987,2]
[361056668,1747222244883,-400.0,0.00010987,2]
[361056669,1747222244892,-400.0,0.00010987,2]
[361056670,1747222244902,-6259.53,0.00010987,2]
[361056671,1747222244912,-481.51,0.00010987,2]
[361056672,1747222244921,-596.08,0.00010987,2]
[361056673,1747222244931,-589.84,0.00010987,2]
[361056674,1747222244941,-661.57,0.00010987,2]
[361056675,1747222244950,-334.86,0.00010987,2]
[361056676,1747222244960,-295.00091888,0.00010987,2]
[361056677,1747222244970,-736.56,0.00010987,2]
[361056678,1747222244980,-400.0,0.00010987,2]
[361056679,1747222244990,-500.05,0.00010987,2]
[361056680,1747222245000,-400.0,0.00010987,2]
[361056681,1747222245010,-406.48,0.00010987,2]
[361056682,1747222245020,-1232.83,0.00010987,2]
[361056683,1747222245030,-223.22751141,0.00010987,2]
[361056684,1747222245040,-400.0,0.00010987,2]
[361056685,1747222245050,-400.0,0.00010987,2]
[361056686,1747222245060,-1343.75,0.00010987,2]
[361056687,1747222245070,-400.0,0.00010987,2]
[361056688,1747222245079,-400.0,0.00010987,2]
[361056689,1747222245089,-5575.92,0.00010987,2]
[361056690,1747222245099,-1099.59,0.00010987,2]
[361056691,1747222245109,-528.6,0.00010987,2]
[361056692,1747222245118,-400.0,0.00010987,2]
[361056693,1747222245128,-859.52,0.00010987,2]
[361056694,1747222245137,-687.22,0.00010987,2]
[361056695,1747222245148,-615.9,0.00010987,2]
[361056696,1747222245159,-1816.93,0.00010987,2]
[361056697,1747222245169,-1907.31,0.00010987,2]
[361056698,1747222245179,-513.23,0.00010987,2]
[361056699,1747222245189,-486.44,0.00010987,2]
[361056700,1747222245199,-400.0,0.00010987,2]
[361056701,1747222245207,-2270.06,0.00010987,2]
[361056702,1747222245216,-923.21,0.00010987,2]
[361056703,1747222245227,-400.0,0.00010987,2]
[361056704,1747222245237,-400.0,0.00010987,2]
[361056705,1747222245246,-400.0,0.00010987,2]